Cogmind - Beta 17 @@@ ROGUE MODE // 2026.08.05 @ 20:09:20 Player: Minty Result: Destroyed by 01-MTF with 01-MTF's Shockpuncher Performance ------------- Evolutions (2) 1000 Regions Visited (4) 800 Robots Destroyed (58) 290 Value Destroyed (1726) 1726 Prototype IDs (28) 560 Alien Tech Used (0) 0 Bonus (10265) 10265 TOTAL SCORE: 14641 Bonus ------- High Alert Combat Kills 48 Prayed to X0-1V1 5000 Major X0-1V1 Interference 5400 Friendly Fire -183 Cogmind --------- Core Integrity 0/770 Matter 300/300 Energy 458/460 System Corruption 0% Temperature Cool (0) Movement Rolling (100) Ox1 Location -8/Storage Parts ------- > --- POWER (2) -------- Heavy Ion Engine Heavy Ion Engine > --- PROPULSION (3) --- Wheel Wheel Armored Wheel > --- UTILITY (4) ------ Small Storage Unit Improved Sensor Array Improved Signal Interpreter Self-contained Transmogrifier > --- WEAPON (2) ------- Hammer > --- INVENTORY (8) ---- Heavy Ion Engine Cooled Ion Engine Aerolev Unit Cryofiber Web Power Bank Enhanced Autogun Enhanced Autogun Subdweller Shrapnel Launcher Peak State ------------ > --- POWER ------------ Heavy Ion Engine Heavy Ion Engine > --- PROPULSION ------- Wheel Wheel Armored Wheel > --- UTILITY ---------- Small Storage Unit Improved Signal Interpreter Self-contained Transmogrifier X0-1V1's Piety Tracker > --- WEAPON ----------- Hammer > --- INVENTORY -------- Heavy Ion Engine Cooled Ion Engine Aerolev Unit Cryofiber Web Power Bank Enhanced Autogun Enhanced Autogun Subdweller Shrapnel Launcher [Rating: 40] Favorites ----------- Power Ion Engine Engine Ion Engine Power Core Light Nuclear Core Propulsion Wheel Treads Light Treads Leg Aluminum Leg Wheel Wheel Hover Unit Aerolev Unit Flight Unit Improved Flight Unit Utility Small Storage Unit Device Self-contained Transmogrifier Storage Small Storage Unit Processor Improved Targeting Computer Protection Medium Armor Plating Weapon Grenade Launcher Energy Gun Medium Laser Energy Cannon Cooled Particle Cannon Ballistic Gun Enhanced Autogun Ballistic Cannon Flak Cannon Launcher Grenade Launcher Impact Weapon Hammer Build | -11 -10 -10 -8 -8 ------- Run | Yrd Mat Sub Mat Sto Slots Evolved 4 | . . . 4 . Power . | . . . . . Propulsion 2 | . . . 2 . Utility 1 | . . . 1 . Weapon 1 | . . . 1 . Parts Attached 47 | . 7 8 23 9 Power 7 | . 1 . 3 3 Engine 6 | . 1 . 2 3 Core 1 | . . . 1 . Reactor . | . . . . . Propulsion 19 | . 2 3 11 3 Treads 4 | . 2 1 1 . Leg 1 | . . . 1 . Wheel 9 | . . 2 4 3 Hover 1 | . . . 1 . Flight 4 | . . . 4 . Utility 12 | . 1 4 4 3 Device 3 | . . 1 . 2 Storage 1 | . . . 1 . Processor 3 | . . . 2 1 Hackware . | . . . . . Protection 5 | . 1 3 1 . Artifact . | . . . . . Weapon 9 | . 3 1 5 . Energy Gun 1 | . 1 . . . Energy Cannon . | . . . . . Ballistic Gun 3 | . . . 3 . Ballistic Cannon 1 | . . . 1 . Launcher 3 | . 2 1 . . Special Weapon . | . . . . . Impact Weapon 1 | . . . 1 . Slashing Weapon . | . . . . . Piercing Weapon . | . . . . . Special Melee Weapon . | . . . . . Unidentified Prototypes 5 | . . 1 3 1 Parts Lost 16 | . 1 3 12 . Power 2 | . . . 2 . Propulsion 8 | . . . 8 . Utility 2 | . . 1 1 . Weapon 4 | . 1 2 1 . Highest Loss Streak 5 | . 1 1 5 . To Critical Strikes . | . . . . . Average Backups 6 | 6 6 6 5 8 Power . | 1 . . . 1 Propulsion 1 | 4 3 1 1 1 Utility 3 | . . 4 2 2 Weapon 1 | 1 . . 2 3 Tool/Special . | . . . . . Unused Backups 10 | . 4 3 . 3 Power 1 | . . . . 1 Propulsion 2 | . 2 . . . Utility 4 | . . 2 . 2 Weapon 3 | . 2 1 . . Tool/Special . | . . . . . Average Slot Usage (%) 80 | . 86 82 71 88 Engine 11 | . 14 14 5 16 Core 1 | . . . 3 1 Treads 9 | . 4 18 1 . Leg 3 | . 22 . . . Wheel 8 | . . 5 12 25 Device 9 | . . 6 13 19 Storage 11 | . 14 14 6 9 Processor 3 | . . . 9 7 Protection 4 | . 2 7 . . Energy Gun 3 | . 15 1 2 . Energy Cannon 1 | . . 1 2 . Launcher 7 | . 12 12 1 . Impact Weapon 2 | . . . 5 9 Peak Build Rating 40 | 6 9 20 33 40 Average Rating 17 | 6 6 13 25 29 On Entrance 14 | 6 6 9 20 31 Avg Prop Armor Cover (%) 11 | . . 10 12 6 Naked Turns . | . . . . . Heaviest Build 37 | 13 23 31 37 31 Greatest Support 40 | 20 40 40 32 32 Greatest Overweight (x) 7 | . 1 1 7 1 Average Overweight (x) . | . . . . . Largest Inventory Capacity 8 | 8 8 8 8 8 Average Capacity 7 | 8 8 8 7 8 Most Carried 8 | 6 8 8 8 8 Average Carried 6 | 6 6 7 6 7 Final Capacity 8 | 8 8 8 8 8 Final Carried 8 | 6 8 8 8 8 Transmogrified Parts 16 | . . 5 10 1 Integrity Recovered 271 | . . 123 148 . Class Distribution -------------------- 79% | Mutant 12% | Scavenger-Mutant 7% | Sprinter Dominant Class ---------------- Mutant | -10/Materials Mutant | -10/Subcaves Mutant | -8/Materials Mutant | -8/Storage Resources | -11 -10 -10 -8 -8 ----------- Run | Yrd Mat Sub Mat Sto Matter Collected 1361 | 165 64 271 771 90 Remotely . | . . . . . Salvage Created 1171 | . 291 174 667 39 Parts 88 | . 19 32 35 2 Haulers Intercepted 1 | . . . 1 . Recyclers Shooed 2 | . 1 . 1 . Parts Field Recycled . | . . . . . Retrieved Matter . | . . . . . Parts Self-Destructed 28 | . . 28 . . Prevented . | . . . . . Parts Restored . | . . . . . Kills | -11 -10 -10 -8 -8 ------- Run | Yrd Mat Sub Mat Sto Combat Hostiles Destroyed 48 | . 9 17 22 . Melee 2 | . . 1 1 . Guns 1 | . 1 . . . Cannons 6 | . . . 6 . AOE 37 | . 8 16 13 . Classes Destroyed 12 | . 4 4 4 . Builder 3 | . 1 . 2 . Tunneler 1 | . 1 . . . Hauler 1 | . . . 1 . Recycler 1 | . . . 1 . Turret 2 | . . 2 . . Watcher 1 | . 1 . . . Swarmer 16 | . . 11 5 . Grunt 25 | . 9 1 14 1 Brawler 1 | . . . 1 . Sentry 2 | . . . 2 . Artisan 1 | . . 1 . . Subdweller 5 | . . 5 . . Best Kill Streak 8 | . 7 7 8 . Combat Bots Only 7 | . 6 7 6 . Max Kills in Single Turn 3 | . 3 3 3 1 Gunslinging . | . . . . . Exploded 3 | . 2 3 3 . Melee 1 | . . 1 1 . Uniques/NPCs Destroyed . | . . . . . Combat | -11 -10 -10 -8 -8 -------- Run | Yrd Mat Sub Mat Sto Hostile Shots Fired 287 | . 30 91 161 5 Missed 88 | . 10 37 39 2 Hits 199 | . 20 54 122 3 Projectile 199 | . 20 54 122 3 AOE 4 | . . 4 . . Critical Strikes 6 | . . . 6 . Part Disruptions 2 | . . . 1 1 Damage Taken 3342 | . 274 995 2006 67 Core 1075 | . 63 146 841 25 Absorbed by Shields 32 | . . . 32 . Core Remaining (%) 93 | 100 . 86 . . Volleys Fired 78 | . 14 20 44 . Largest 2 | . 2 2 2 . Hottest 98 | . 90 98 90 . Shots Fired 103 | . 28 27 48 . Gun 30 | . 15 . 15 . Cannon 23 | . . 2 21 . Launcher 50 | . 13 25 12 . Special . | . . . . . Kinetic 40 | . . 2 38 . Thermal 23 | . 11 2 10 . Explosive 36 | . 13 23 . . Electromagnetic 4 | . 4 . . . Robot Hit Streak 14 | . 5 14 10 . Robot Miss Streak 3 | . 3 2 3 . Penetration Max . | . . . . . Secondary Targets . | . . . . . Shots Hit Robots 82 | . 16 17 48 1 Core Hits 102 | . 26 29 47 . Critical Kills 1 | . . . 1 . Critical Parts Destroyed 2 | . . . 1 1 Critical Strikes 5 | . 1 . 3 1 Burn 2 | . 1 . 1 . Smash 3 | . . . 2 1 Melee Attacks 17 | . . . 11 6 Impact 17 | . . . 11 6 Slashing . | . . . . . Piercing . | . . . . . Sneak Attacks 2 | . . . 1 1 Combat Hostiles . | . . . . . Follow-up Attacks . | . . . . . Damage Inflicted 5017 | . 838 1626 2484 69 Guns 316 | . 101 . 215 . Cannons 514 | . . . 514 . Explosions 3744 | . 731 1616 1397 . Melee 417 | . . . 348 69 Ramming 26 | . 6 10 10 . Kinetic 2183 | . . 322 1861 . Thermal 248 | . 62 . 186 . Explosive 2104 | . 731 1294 79 . Electromagnetic 39 | . 39 . . . Impact 417 | . . . 348 69 Slashing . | . . . . . Piercing . | . . . . . Highest Corruption 29 | . . 29 2 . Average Corruption 10 | . . 10 1 . Corruption Purged . | . . . . . Corruption Blocked . | . . . . . Effects 15 | . . 15 . . Message Errors 5 | . . 5 . . Matter Fused 3 | . . 3 . . Heat Flow Errors 3 | . . 3 . . Data Loss (minor) 2 | . . 2 . . Misfires 2 | . . 2 . . Overload Shots 3 | . . . 3 . Overflow Damage 203 | . 3 . 131 69 Projectiles 11 | . . . 11 . Explosions 80 | . 3 . 77 . Melee 112 | . . . 43 69 Knockbacks 12 | . . 1 11 . Impact 4 | . . 1 3 . Kinetic 7 | . . . 7 . Secondary 1 | . . . 1 . Self-Inflicted Damage 226 | . 21 87 118 . Shots 10 | . 2 4 4 . Rammed 6 | . 1 4 1 . Targets Rammed 9 | . 3 5 1 . Kicked 2 | . 2 . . . Crushed 1 | . . 1 . . Highest Temperature 243 | . 223 156 243 . Average Temperature 93 | . 83 70 107 . Received Heat Transfer 1062 | . 138 159 765 . Effects 3 | . . . 3 . Interference 3 | . . . 3 . Siege Activations . | . . . . . Martial Activations . | . . . . . Shielding Activations . | . . . . . Robots Disrupted . | . . . . . Combat Hostiles . | . . . . . Robots Corrupted 2 | . . . 2 . Combat Hostiles 2 | . . . 2 . Parts Fried 4 | . . . 4 . Impact Corruptions 4 | . . . 3 1 Robots Melted . | . . . . . Combat Hostiles . | . . . . . Parts Melted 1 | . . . 1 . Heat Transferred 642 | . 259 . 383 . Parts Sabotaged . | . . . . . Parts Stolen . | . . . . . Parts Stripped . | . . . . . Power Chain Reactions . | . . . . . Alert | -11 -10 -10 -8 -8 ------- Run | Yrd Mat Sub Mat Sto Maximum Alert Level 2 | . 1 . 2 1 Low Security (%) 34 | 100 73 . 27 . Level 1 43 | . 26 . 37 100 Level 2 21 | . . . 35 . Level 3 . | . . . . . Level 4 . | . . . . . Level 5 . | . . . . . High Security . | . . . . . Max Security . | . . . . . Sterilizations 1 | . . . 1 . Peak Influence 583 | . 253 . 583 250 Initial 235 | . . . 32 235 Average 244 | . 91 . 311 228 Influence Increases 1624 | . 305 305 939 75 Destroy 0b10 Robot/C 900 | . 180 280 440 . Destroy 0b10 Robot/NC 35 | . 15 . 20 . Destroy Leader 164 | . 52 10 102 . Trap Triggered on 0b10 20 | . . . 20 . Successful Hack 31 | . 12 . 19 . Select Force Hacks 50 | . . . 50 . Disable Machine 75 | . . . 45 30 Destroy Structure 139 | . 46 . 93 . Partial Spotted 30 | . . . 30 . Lose Combat Pursuer 180 | . . 15 120 45 Influence Decreases 1384 | . 92 455 445 392 Entered New Map 456 | . . 103 31 322 Time Decay 778 | . 92 322 294 70 Lost Part 150 | . . 30 120 . Squads Dispatched 14 | . 3 . 9 2 Investigation 6 | . 1 . 3 2 Extermination . | . . . . . Reinforcement 4 | . 2 . 2 . Assault 2 | . . . 2 . Garrison 2 | . . . 2 . Intercept . | . . . . . Searches Triggered . | . . . . . Construction Impeded 1 | . . . 1 . Haulers Reinforced . | . . . . . Active Scanning Responses . | . . . . . Cargo Convoy Interrupts . | . . . . . Stealth | -11 -10 -10 -8 -8 --------- Run | Yrd Mat Sub Mat Sto Distress Signals 2 | . 2 . . . Communications Jammed . | . . . . . Distress Signals . | . . . . . Times Spotted 87 | . 13 28 39 7 Peak Tracking Total 7 | . 4 6 7 5 Tactical Retreats 8 | . . 1 4 3 Traps | -11 -10 -10 -8 -8 ------- Run | Yrd Mat Sub Mat Sto Traps Triggered 1 | . . . 1 . Indirectly . | . . . . . Trap Hack Attempts . | . . . . . Triggered . | . . . . . Disarmed . | . . . . . Reprogrammed . | . . . . . Reused 7 | . . 5 2 . Traps Extracted . | . . . . . Installed 8 | . . 5 3 . Triggered 7 | . . 5 2 . Most Traps Carried 5 | . . 5 3 . Machines | -11 -10 -10 -8 -8 ---------- Run | Yrd Mat Sub Mat Sto Machines Disabled 10 | . . 5 3 2 Max in Single Turn 3 | . . 3 1 1 Garrison Access 2 | . . . 1 1 Machines Repaired . | . . . . . Machines Dismantled . | . . . . . Machines Sabotaged 1 | . . . 1 . Overloaded Fab Kills . | . . . . . Hacking | -11 -10 -10 -8 -8 --------- Run | Yrd Mat Sub Mat Sto Machines Accessed 12 | . 5 1 5 1 Terminals 7 | . 4 . 3 . Fabricators . | . . . . . Repair Stations 1 | . . . 1 . Recycling Units 1 | . 1 . . . Scanalyzers 1 | . . . 1 . Garrison Access 1 | . . . . 1 Total Hacks 34 | . 15 1 17 1 Successful 13 | . 7 1 4 1 Failed 21 | . 8 . 13 . Catastrophic 5 | . 3 . 2 . Database Lockouts . | . . . . . Manual 12 | . 5 . 7 . Terminals 21 | . 13 . 8 . Fabricators . | . . . . . Repair Stations 5 | . . . 5 . Recycling Units 2 | . 2 . . . Scanalyzers 4 | . . . 4 . Garrison Access 1 | . . . . 1 Terminal Hacks 9 | . 7 1 1 . Robot Analysis 3 | . 2 . 1 . Prototype ID Bank 2 | . 2 . . . Branch Access Points 1 | . 1 . . . Locate Traps 1 | . 1 . . . Zone Layout 1 | . 1 . . . Proto ID Catalog 1 | . . 1 . . Fabricator Hacks . | . . . . . Repair Station Hacks . | . . . . . Recycling Unit Hacks . | . . . . . Scanalyzer 2 | . . . 2 . Insert Component 1 | . . . 1 . Analyze 1 | . . . 1 . Garrison Access Hacks 1 | . . . . 1 Seal Access 1 | . . . . 1 Unauthorized Hacks 1 | . . . 1 . Terminals 1 | . . . 1 . Sabotage 1 | . . . 1 . Fabricators . | . . . . . Repair Stations . | . . . . . Recycling Units . | . . . . . Scanalyzers . | . . . . . Garrison Access . | . . . . . Data Cores Recovered . | . . . . . Used . | . . . . . Hacking Detections 10 | . 5 . 5 . Full Trace Events 3 | . 1 . 2 . Feedback Events . | . . . . . Feedback Blocked . | . . . . . Robot Schematics Acquired . | . . . . . Robots Built . | . . . . . Authchips . | . . . . . Time . | . . . . . Total Robot Build Rating . | . . . . . Part Schematics Acquired 1 | . . . 1 . Parts Built . | . . . . . Authchips . | . . . . . Time . | . . . . . Total Part Build Rating . | . . . . . Part Studies Acquired . | . . . . . Parts Repaired . | . . . . . Time . | . . . . . Parts Recycled . | . . . . . Recycled Matter . | . . . . . Retrieved Matter . | . . . . . Retrieved Components . | . . . . . Parts Scanalyzed 1 | . . . 1 . Part Schematics Acquired 1 | . . . 1 . Parts Damaged . | . . . . . Bothacking | -11 -10 -10 -8 -8 ------------ Run | Yrd Mat Sub Mat Sto Used RIF Installer . | . . . . . Robots Hacked . | . . . . . Non-combat . | . . . . . Combat . | . . . . . Robot Hacks Applied . | . . . . . Relay Couplers Released 3 | . . . 3 . Machine Destruction 3 | . . . 3 . Fabnet Peak Effective % . | . . . . . Robots Rewired . | . . . . . Allies Hacked . | . . . . . Hacks Repelled . | . . . . . Allies | -11 -10 -10 -8 -8 -------- Run | Yrd Mat Sub Mat Sto Total Allies . | . . . . . Largest Group . | . . . . . Highest-Rated Group . | . . . . . Highest-Rated Ally . | . . . . . Total Orders . | . . . . . Ally Attacks . | . . . . . Total Damage . | . . . . . Kills . | . . . . . Allies Corrupted . | . . . . . Allies Melted . | . . . . . X0-1V1 Amusement Gains 124 | . 10 26 27 61 Good Acts 31 | . . 19 12 . Bad Acts 27 | . . 18 6 3 Intel | -11 -10 -10 -8 -8 ------- Run | Yrd Mat Sub Mat Sto Active Infowar (turns) 139 | . . . 56 83 Sensors 83 | . . . . 83 Machine Analysis 56 | . . . 56 . Robot Analysis Total 3 | . 2 . 1 . Derelict Logs Recovered . | . . . . . Drone Launches . | . . . . . Drone Recoveries . | . . . . . Exploration | -11 -10 -10 -8 -8 ------------- Run | Yrd Mat Sub Mat Sto Turns Passed 1951 | 3 260 891 646 151 Spaces Moved 1329 | 3 155 583 488 100 Core 28 | . . . 28 . Treads 332 | . 22 309 1 . Legs 139 | 3 133 . 3 . Wheels 649 | . . 274 275 100 Hover 49 | . . . 49 . Flight 132 | . . . 132 . Fastest Speed 32 | 120 120 80 32 80 Average Speed 109 | 120 126 130 83 86 Slowest Speed 400 | 120 190 160 400 100 Overloaded Moves . | . . . . . Propulsion Burnouts . | . . . . . Robots Hopped . | . . . . . Potential Cave-ins 8 | . . . 8 . Cave-ins Triggered . | . . . . . Exploration Rate (%) 26 | 2 42 39 35 14 Regions Visited 4 Branch Regions 2 Pre-discovered Areas . | . . . . . Known Exits Taken 1 | . . 1 . . Unknown Exits Taken 3 | 1 1 . 1 . Scrap Searched 2 | . . 2 . . Spaces Dug . | . . . . . Terrain Destroyed 321 | . 43 130 148 . Melee . | . . . . . Projectile 2 | . . . 2 . AOE 319 | . 43 130 146 . Terrain Rammed . | . . . . . Walls Destroyed . | . . . . . Machines Disabled . | . . . . . Actions | -11 -10 -10 -8 -8 --------- Run | Yrd Mat Sub Mat Sto Total 1695 | 2 192 688 656 157 Wait 132 | . . 35 66 31 Move 1325 | 2 154 582 487 100 Hop . | . . . . . Pick Up 25 | . 8 12 3 2 Fast Attach 24 | . 1 1 18 4 Attach 16 | . 3 5 7 1 Detach 16 | . 1 2 8 5 Swap 18 | . 3 8 3 4 Drop 27 | . 5 13 5 4 Fire 78 | . 14 20 44 . Melee 17 | . . . 11 6 Ram 1 | . . . 1 . Kick 2 | . 2 . . . Crush 6 | . 1 5 . . Escape Stasis . | . . . . . Rewire . | . . . . . Trap 8 | . . 5 3 . Miscellaneous . | . . . . . Route ------- -11/Scrapyard -10/Materials (discovered 2 exits: Min / *Sub) -10/Subcaves (discovered 3 exits: *Mat x2 / [*Rec]) -8/Materials -8/Storage History --------- Turn | Location | Event 1 | -11/Scrapyard | Discovered new exit (range 1) 4 | -11/Scrapyard | Entered Materials 73 | -10/Materials | Identified exit to Mines 213 | -10/Materials | Discovered new exit (range 13) 261 | -10/Materials | Prayed at D.C.S.S. Altar Unit 264 | -10/Materials | Entered Subcaves 265 | -10/Subcaves | Approached by a straggling Scientist 270 | -10/Subcaves | Shifting Twisted Machinery released Spk. Treads 305 | -10/Subcaves | Build established: Mutant 354 | -10/Subcaves | Ambushed by Subdweller buried in earth 365 | -10/Subcaves | X0-1V1 mutated your Weapon slot to Utility slot 376 | -10/Subcaves | Ambushed by Subdweller buried in earth 384 | -10/Subcaves | Ambushed by Subdweller buried in earth 402 | -10/Subcaves | Ambushed by Subdweller buried in earth 403 | -10/Subcaves | Destroyed 7 combat bots 425 | -10/Subcaves | Core integrity fell below 50% 647 | -10/Subcaves | X0-1V1 mutated your Utility slot to Weapon slot 666 | -10/Subcaves | X0-1V1 sent hostile G-34 Mercenary (x4) 669 | -10/Subcaves | X0-1V1 whisked you away to safety 671 | -10/Subcaves | Core integrity permanently improved by X0-1V1 (+300) 682 | -10/Subcaves | System corruption reached 10% 704 | -10/Subcaves | Visited 4L-MR0's lab 719 | -10/Subcaves | Found Prototype Device 719 | -10/Subcaves | Identified Sfc. Transmogrifier 728 | -10/Subcaves | Found Power Bank 766 | -10/Subcaves | Discovered new exit (range 4) 766 | -10/Subcaves | X0-1V1 sent you into danger 775 | -10/Subcaves | X0-1V1 mutated your Weapon slot to Power slot 803 | -10/Subcaves | X0-1V1 sent hostile S-10 Pest (x4) 817 | -10/Subcaves | X0-1V1 activates XOMVISION 827 | -10/Subcaves | Identified exit to Materials 827 | -10/Subcaves | X0-1V1 revealed exit location to -8/Materials 855 | -10/Subcaves | Discovered exit to Materials (range 11) 896 | -10/Subcaves | Core integrity restored by X0-1V1 (+137) 918 | -10/Subcaves | X0-1V1 mutated your Propulsion slot to Utility slot 933 | -10/Subcaves | X0-1V1 sent you into danger 1071 | -10/Subcaves | X0-1V1 activates XOMVISION 1155 | -10/Subcaves | Entered Materials 1155 | -8/Materials | Evolved 4 slots: Propulsion x2, Utility x1, Weapon x1 1332 | -8/Materials | X0-1V1 released a cloud of subatomizers 1350 | -8/Materials | Core integrity fell below 50% 1357 | -8/Materials | Ranged accuracy permanently improved by X0-1V1 (+8%; -80 max core) 1381 | -8/Materials | Discovered new exit (range 15) 1444 | -8/Materials | Core integrity fell below 20% 1482 | -8/Materials | Lost 5 parts (1p3n1u) 1496 | -8/Materials | Garrison activated, responded to threat 1534 | -8/Materials | X0-1V1 redirected Transport squads to designated parking area 1625 | -8/Materials | X0-1V1 announced a LAN party 1715 | -8/Materials | X0-1V1 made a cryptic comment about sterilization and BL-4Z3 1737 | -8/Materials | X0-1V1 sent hostile H-55 Commando (x3) 1759 | -8/Materials | Sterilization system engaged 1759 | -8/Materials | Non-combat units ordered to evacuate 1801 | -8/Materials | Entered Storage 1811 | -8/Storage | Met 01-MTF 1903 | -8/Storage | X0-1V1 sent hostile G-47 Trooper (x5) 1952 | -8/Storage | Destroyed by 01-MTF with 01-MTF's Shockpuncher Last Messages --------------- 01892_ Matter capacity returns to normal. X0-1V1's Piety Tracker suddenly appears amidst shimmering waves of color. 01897_ Dropped Wheel. 01898_ Acquired 10 matter. 01903_ X0-1V1: "Some new friends to play with." G-47 Trooper form resolidifies at new position. 01908_ X0-1V1 projects screaming human faces on all surfaces in the area (-10% melee accuracy). 01923_ 01-MTF suffers critical hit (Burn). 01928_ 01-MTF heat damages Prototype Hover Unit. 01947_ Sneak attack on G-47 Trooper. 01947_ G-47 Trooper suffers critical hit (Smash). 01947_ Destroyed Lgt. Nuclear Core. 01947_ G-47 Trooper system corrupted by crushing effect. 01947_ G-47 Trooper destroyed. 01948_ X0-1V1 is highly amused! 01949_ 01-MTF: "How could you, we barely know each other!" 01949_ X0-1V1 is highly amused! 01951_ R-06 Scavenger collects Corrupted Aluminum Leg. 01952_ X0-1V1 chuckles heartily! Map ----- +----------------------------------------------------+ | ?????????????????????????????????????????????????? | | ?????????????????????????????????????????????????? | | ?????????????????????????????????????????????????? | | ?????????????????????????????????????????????????? | | ?????????????????????????????????????????????????? | | ?????????????????????????????????????????????????? | | ?????????????????????????????????????????????????? | | ?????????????????????????????????????????????????? | | ?????????????????????????????????????????????????? | | ?????????????????????????????????????????????????? | | ?????????????????????????????????????????????????? | | ?????????????????????????????????????????????????? | | ?????????????????????????????????????????????????? | | ?????????????????????????????????????????????????? | | ?????????????????????????????????????????????????? | | ?????????????????????????????????????????????????? | | ?????????????????????????????????????????????????? | | ?????????????????????????????????????????????????? | | ??????????????????????????##?????????????????????? | | ??????????????????????#### #?????????????????????? | | ?????????????????????##""""########??????#???????? | | ?????????????????????# =[%%= # #????? #???????? | | ?????????????????????# !=%= + #???? +???????? | | ???????????########??# p= % # #### #???????? | | ???????????#* *= #??# "%""" ; #???????? | | ???????????# * * #??# " @ ; #???????? | | ???????????#** #??# "]""% ; u #???????? | | ???????????# #??# """"% # #"Y"####???????? | | ???????????###" "##??# ?""" # #??"#??????????? | | ????????????#T #??# ? # #??????????????? | | ????????????## #??########## ##?????????????? | | ?????????######+############## #?????????????? | | ?????????# #?????????????? | | ?????????# #?????????????? | | ?????????# #?????????????? | | ?????????##" "#######+######## #?????????????? | | ??????????#"G"#????# #??????#######?????????????? | | ??????????#"""#????# #??????????????????????????? | | ??????????#####????" #??????????????????????????? | | ???????????????????#T#???????????????????????????? | | ???????????????????##????????????????????????????? | | ?????????????????????????????????????????????????? | | | | | | | | | | | | | | | | | +----------------------------------------------------+ Best States ------------- Heat Dissipation 31 Coolant Potential 50 Energy Generation 23 Energy Capacity 1760 Matter Stores 1000 Matter Capacity 1000 Sight Range 22 Robot Scan Range 15 Terrain Scan Density 10 Armor Coverage 800 Evasion (%) 63 Targeting Accuracy 12 Recoil Reduction 2 Item Schematics ----------------- Enh. Autogun | -8/Materials | Scanalyzed Robot Schematics ------------------ None Fabricated ------------ Nothing Repaired ---------- Nothing Studied --------- None Alien Tech Used ----------------- None Achievements -------------- None Challenges ------------ None Game ------ Seed RegenerativePortablePower Manual? 0 Play Time 00:22:33 Cumulative 1353.4 hours Start 2026.08.05 @ 19:31:51 End 2026.08.05 @ 20:09:20 Sessions 3 Manual Loads 0 Difficulty Rogue Special Mode None Game No. 1659 Rogue 1375 Adventurer 124 Explorer 160 Win Type - Total 69 Types 54/0/9/4/1/0/0/1/0/0 Lore% 93 Gallery% 84 Achievement% 73 Wizard Run 0 Options --------- Layout 0 ASCII 0 Keyboard 1 Movement Numpad Keybinds 0 Fullscreen 2 Font 18/X11 Map View 76x50 Zoom Use 0% Tactical HUD 1 Map Filters NONE Filters NONE Steam 1 RUN: 2e80cb8d-6aa5-4b9d-87d3-930f1d523d71